[Event "*** Titled Tuesday 3|2 Blitz"]
[Site "Chess.com"]
[Date "2017.03.07"]
[Round "6"]
[White "Rbrrt"]
[Black "SabinaFoisor"]
[Result "1-0"]
[WhiteElo "2100"]
[BlackElo "2159"]
[TimeControl "180+2"]
[EndTime "14:27:05 PST"]
[Termination "Rbrrt won by checkmate"]

1. e4 {[%clk 0:03:02]} 1... e5 {[%clk 0:02:57.5]} 2. Nf3 {[%clk 0:03:02.2]} 2...
Nc6 {[%clk 0:02:57.9]} 3. d4 {[%clk 0:03:03.6]} 3... exd4 {[%clk 0:02:56]} 4.
Nxd4 {[%clk 0:03:05.5]} 4... Bc5 {[%clk 0:02:38.7]} 5. Nb3 {[%clk 0:03:06.5]}
5... Bb6 {[%clk 0:02:35.9]} 6. Nc3 {[%clk 0:03:08.1]} 6... d6 {[%clk 0:02:35.9]}
7. Qe2 {[%clk 0:03:09]} 7... Be6 {[%clk 0:02:33.4]} 8. Be3 {[%clk 0:03:10.1]}
8... Nf6 {[%clk 0:02:30.8]} 9. O-O-O {[%clk 0:03:09]} 9... Qe7 {[%clk 0:02:19]}
10. g3 {[%clk 0:03:07.5]} 10... O-O-O {[%clk 0:02:18.5]} 11. Bxb6 {[%clk
0:03:07.1]} 11... axb6 {[%clk 0:02:18]} 12. Bg2 {[%clk 0:03:04.2]} 12... Rhe8
{[%clk 0:02:18.3]} 13. Qd2 {[%clk 0:03:02.4]} 13... Kb8 {[%clk 0:02:13.6]} 14.
f4 {[%clk 0:02:52.7]} 14... Bg4 {[%clk 0:01:47.6]} 15. Rde1 {[%clk 0:02:48.7]}
15... h6 {[%clk 0:01:47.1]} 16. Nd4 {[%clk 0:02:44.5]} 16... Nxd4 {[%clk
0:01:43.8]} 17. Qxd4 {[%clk 0:02:45.6]} 17... Qd7 {[%clk 0:01:42.8]} 18. h3
{[%clk 0:02:42.5]} 18... Bh5 {[%clk 0:01:42.9]} 19. Qb4 {[%clk 0:02:32]} 19...
Bg6 {[%clk 0:01:39]} 20. Rd1 {[%clk 0:02:11.9]} 20... Nh5 {[%clk 0:01:30.9]} 21.
Rd3 {[%clk 0:02:03.6]} 21... Qc6 {[%clk 0:01:22.4]} 22. Re1 {[%clk 0:00:46.6]}
22... Qc5 {[%clk 0:01:11.6]} 23. Qa4 {[%clk 0:00:46.2]} 23... Qa5 {[%clk
0:01:10.2]} 24. Qb3 {[%clk 0:00:44.8]} 24... Qc5 {[%clk 0:01:00.3]} 25. Qa4
{[%clk 0:00:38.7]} 25... Qc6 {[%clk 0:00:58.7]} 26. Nb5 {[%clk 0:00:36.2]} 26...
f5 {[%clk 0:00:37.5]} 27. Rc3 {[%clk 0:00:36.8]} 27... Qxc3 {[%clk 0:00:28.8]}
28. bxc3 {[%clk 0:00:27.5]} 28... Nxg3 {[%clk 0:00:24.4]} 29. Qa7+ {[%clk
0:00:20.1]} 29... Kc8 {[%clk 0:00:24.3]} 30. Qa8+ {[%clk 0:00:21.3]} 30... Kd7
{[%clk 0:00:25.3]} 31. Qxb7 {[%clk 0:00:22.9]} 31... Rc8 {[%clk 0:00:23.2]} 32.
Na7 {[%clk 0:00:23.2]} 32... fxe4 {[%clk 0:00:21.2]} 33. Qc6+ {[%clk 0:00:22.7]}
33... Kd8 {[%clk 0:00:20.9]} 34. Nxc8 {[%clk 0:00:23.4]} 34... Kxc8 {[%clk
0:00:22.8]} 35. c4 {[%clk 0:00:22]} 35... Kd8 {[%clk 0:00:20.1]} 36. a4 {[%clk
0:00:23.1]} 36... Bf5 {[%clk 0:00:19.9]} 37. a5 {[%clk 0:00:23.3]} 37... bxa5
{[%clk 0:00:18.7]} 38. c5 {[%clk 0:00:24.9]} 38... Bd7 {[%clk 0:00:18.3]} 39.
Qd5 {[%clk 0:00:24.4]} 39... dxc5 {[%clk 0:00:17.4]} 40. Qxc5 {[%clk 0:00:25.8]}
40... Re7 {[%clk 0:00:17.8]} 41. Qxa5 {[%clk 0:00:25.9]} 41... Ke8 {[%clk
0:00:18.4]} 42. Qxc7 {[%clk 0:00:25.4]} 42... e3 {[%clk 0:00:17.2]} 43. Qc3
{[%clk 0:00:05.7]} 43... Nf5 {[%clk 0:00:16.9]} 44. Qd3 {[%clk 0:00:04.8]} 44...
Kf7 {[%clk 0:00:15.6]} 45. Be4 {[%clk 0:00:06.1]} 45... Kf6 {[%clk 0:00:16]} 46.
Bxf5 {[%clk 0:00:07.1]} 46... Bxf5 {[%clk 0:00:17.6]} 47. Qd4+ {[%clk
0:00:08.7]} 47... Kf7 {[%clk 0:00:18.7]} 48. Rxe3 {[%clk 0:00:10.3]} 48... Rd7
{[%clk 0:00:18.2]} 49. Qc3 {[%clk 0:00:11.2]} 49... g5 {[%clk 0:00:18.3]} 50.
Qb3+ {[%clk 0:00:12.5]} 50... Kg6 {[%clk 0:00:18.4]} 51. fxg5 {[%clk 0:00:14.4]}
51... hxg5 {[%clk 0:00:19.1]} 52. Rg3 {[%clk 0:00:15.6]} 52... Rc7 {[%clk
0:00:18.7]} 53. c4 {[%clk 0:00:16.9]} 53... Be6 {[%clk 0:00:18.9]} 54. Qb6
{[%clk 0:00:17.9]} 54... Rxc4+ {[%clk 0:00:19.6]} 55. Kd2 {[%clk 0:00:19.3]}
55... Re4 {[%clk 0:00:20.6]} 56. Re3 {[%clk 0:00:19.8]} 56... Rxe3 {[%clk
0:00:18.2]} 57. Kxe3 {[%clk 0:00:21.7]} 57... Kf6 {[%clk 0:00:19.7]} 58. Kf3
{[%clk 0:00:23.2]} 58... Ke7 {[%clk 0:00:20.5]} 59. Kg3 {[%clk 0:00:24.7]} 59...
Kf6 {[%clk 0:00:21.9]} 60. Qc5 {[%clk 0:00:26.2]} 60... Kg6 {[%clk 0:00:22.6]}
61. Qd6 {[%clk 0:00:27.5]} 61... Kf6 {[%clk 0:00:23.9]} 62. h4 {[%clk 0:00:29]}
62... gxh4+ {[%clk 0:00:24.4]} 63. Kxh4 {[%clk 0:00:30.9]} 63... Kf5 {[%clk
0:00:25.9]} 64. Qd4 {[%clk 0:00:31]} 64... Bf7 {[%clk 0:00:24.1]} 65. Qc5+
{[%clk 0:00:25.1]} 65... Kf6 {[%clk 0:00:22.8]} 66. Kg4 {[%clk 0:00:26.5]} 66...
Bg6 {[%clk 0:00:23.4]} 67. Kf4 {[%clk 0:00:26.2]} 67... Bf7 {[%clk 0:00:24.7]}
68. Qe5+ {[%clk 0:00:26.9]} 68... Kg6 {[%clk 0:00:25.7]} 69. Qg5+ {[%clk
0:00:28]} 69... Kh7 {[%clk 0:00:26.8]} 70. Ke5 {[%clk 0:00:28.3]} 70... Bg6
{[%clk 0:00:24.4]} 71. Kf6 {[%clk 0:00:28.7]} 71... Kh8 {[%clk 0:00:24.7]} 72.
Qh6+ {[%clk 0:00:29.6]} 72... Bh7 {[%clk 0:00:24.7]} 73. Qg7# {[%clk 0:00:31]}
1-0

[Event "*** Titled Tuesday 3|2 Blitz"]
[Site "Chess.com"]
[Date "2017.03.07"]
[Round "6"]
[White "GMMarcinDziuba"]
[Black "olomi007"]
[Result "0-1"]
[WhiteElo "2457"]
[BlackElo "2495"]
[TimeControl "180+2"]
[EndTime "14:27:11 PST"]
[Termination "olomi007 won by resignation"]

1. d4 {[%clk 0:03:02]} 1... Nf6 {[%clk 0:02:57.7]} 2. c4 {[%clk 0:03:03]} 2...
g6 {[%clk 0:02:58.1]} 3. Nc3 {[%clk 0:03:02.7]} 3... d5 {[%clk 0:02:59.3]} 4.
Bf4 {[%clk 0:03:02.6]} 4... Bg7 {[%clk 0:02:58.2]} 5. e3 {[%clk 0:03:03.5]} 5...
O-O {[%clk 0:02:58.5]} 6. Rc1 {[%clk 0:03:04.7]} 6... Be6 {[%clk 0:02:58.6]} 7.
c5 {[%clk 0:03:02.5]} 7... b6 {[%clk 0:02:47.1]} 8. b4 {[%clk 0:02:55.9]} 8...
Nh5 {[%clk 0:02:47.8]} 9. Bg5 {[%clk 0:02:54.8]} 9... h6 {[%clk 0:02:44.1]} 10.
Bh4 {[%clk 0:02:54.7]} 10... a5 {[%clk 0:02:44.8]} 11. a3 {[%clk 0:02:41.6]}
11... axb4 {[%clk 0:02:43.3]} 12. axb4 {[%clk 0:02:43.5]} 12... Nc6 {[%clk
0:02:38.5]} 13. b5 {[%clk 0:02:43.4]} 13... Na5 {[%clk 0:02:28]} 14. c6 {[%clk
0:02:39.4]} 14... Qd6 {[%clk 0:02:14.1]} 15. Bd3 {[%clk 0:02:18.7]} 15... f5
{[%clk 0:02:01.5]} 16. Bg3 {[%clk 0:02:02.2]} 16... Nxg3 {[%clk 0:01:52.2]} 17.
hxg3 {[%clk 0:02:04.1]} 17... Bf7 {[%clk 0:01:50.5]} 18. Nf3 {[%clk 0:01:46.7]}
18... Nc4 {[%clk 0:01:32.9]} 19. O-O {[%clk 0:01:38.5]} 19... Ra3 {[%clk
0:01:30.6]} 20. Qe2 {[%clk 0:01:25.7]} 20... Rb3 {[%clk 0:00:47]} 21. Nxd5
{[%clk 0:00:40.1]} 21... Nb2 {[%clk 0:00:47.7]} 22. Bc2 {[%clk 0:00:12.9]} 22...
Ra3 {[%clk 0:00:36]} 23. Bb1 {[%clk 0:00:13.8]} 23... Qxd5 {[%clk 0:00:26.2]}
24. Qxb2 {[%clk 0:00:14.6]} 24... Rb3 {[%clk 0:00:27.5]} 25. Qc2 {[%clk
0:00:13.6]} 25... Rxb5 {[%clk 0:00:26.2]} 26. Qe2 {[%clk 0:00:13]} 26... Rb4
{[%clk 0:00:22.7]} 27. Bd3 {[%clk 0:00:13.1]} 27... Qd6 {[%clk 0:00:21.3]} 28.
Rc2 {[%clk 0:00:13.4]} 28... Ra8 {[%clk 0:00:21.6]} 29. Rfc1 {[%clk 0:00:14.3]}
29... Ra3 {[%clk 0:00:20.2]} 30. Bc4 {[%clk 0:00:14.8]} 30... Bxc4 {[%clk
0:00:19]} 31. Rxc4 {[%clk 0:00:16.7]} 31... b5 {[%clk 0:00:18.5]} 32. Rc5 {[%clk
0:00:15.3]} 32... Rab3 {[%clk 0:00:15]} 33. Kh2 {[%clk 0:00:14.5]} 33... Bf6
{[%clk 0:00:16.1]} 34. Ne5 {[%clk 0:00:15.4]} 34... Kg7 {[%clk 0:00:16.8]} 35.
Nd3 {[%clk 0:00:13.1]} 35... Ra4 {[%clk 0:00:15.6]} 36. R5c2 {[%clk 0:00:12.9]}
36... h5 {[%clk 0:00:14.1]} 37. Nc5 {[%clk 0:00:14]} 37... Rab4 {[%clk
0:00:14.8]} 38. Nxb3 {[%clk 0:00:14.9]} 38... Rxb3 {[%clk 0:00:16.7]} 39. Kg1
{[%clk 0:00:15.6]} 39... h4 {[%clk 0:00:17.7]} 40. gxh4 {[%clk 0:00:16.3]} 40...
Bxh4 {[%clk 0:00:19.1]} 41. g3 {[%clk 0:00:17.7]} 41... Bf6 {[%clk 0:00:18.7]}
42. Rb2 {[%clk 0:00:18.9]} 42... Ra3 {[%clk 0:00:19.2]} 43. Rxb5 {[%clk
0:00:19.6]} 43... e6 {[%clk 0:00:17.9]} 44. Rbc5 {[%clk 0:00:20.1]} 44... g5
{[%clk 0:00:18.4]} 45. R5c3 {[%clk 0:00:20.7]} 45... Ra4 {[%clk 0:00:18]} 46.
Rc4 {[%clk 0:00:22]} 46... Ra3 {[%clk 0:00:19.1]} 47. Qb2 {[%clk 0:00:23.2]}
47... f4 {[%clk 0:00:17.1]} 48. exf4 {[%clk 0:00:19.9]} 48... gxf4 {[%clk
0:00:17]} 49. Qe2 {[%clk 0:00:19.1]} 49... fxg3 {[%clk 0:00:16.9]} 50. Qg4+
{[%clk 0:00:18.2]} 50... Kf7 {[%clk 0:00:18.2]} 51. Qh5+ {[%clk 0:00:19.4]}
51... Kg7 {[%clk 0:00:18.8]} 52. Qg4+ {[%clk 0:00:20.3]} 52... Kf8 {[%clk
0:00:19.9]} 53. Rf1 {[%clk 0:00:20.8]} 53... Rd3 {[%clk 0:00:13.1]} 54. Kg2
{[%clk 0:00:19.4]} 54... Qd5+ {[%clk 0:00:14]} 55. Kh3 {[%clk 0:00:15.5]} 55...
Qxc4 {[%clk 0:00:14.5]} 56. fxg3 {[%clk 0:00:16.5]} 56... Ke7 {[%clk 0:00:14.2]}
57. Qf4 {[%clk 0:00:15]} 57... Qxd4 {[%clk 0:00:14.2]} 58. Qxc7+ {[%clk
0:00:15.9]} 58... Kf8 {[%clk 0:00:15.5]} 59. Qc8+ {[%clk 0:00:13.3]} 59... Kg7
{[%clk 0:00:16.9]} 60. Qb7+ {[%clk 0:00:14.7]} 60... Kg6 {[%clk 0:00:17.4]} 61.
c7 {[%clk 0:00:16]} 61... Be5 {[%clk 0:00:17.8]} 62. Qg2 {[%clk 0:00:07]} 62...
Bxc7 {[%clk 0:00:17.7]} 63. Qc2 {[%clk 0:00:07.3]} 63... Bxg3 {[%clk 0:00:11.4]}
64. Rg1 {[%clk 0:00:03.5]} 64... Qh4+ {[%clk 0:00:12.1]} 65. Kg2 {[%clk
0:00:04.7]} 65... Qh2+ {[%clk 0:00:13.2]} 0-1

[Event "*** Titled Tuesday 3|2 Blitz"]
[Site "Chess.com"]
[Date "2017.03.07"]
[Round "6"]
[White "oggy1984"]
[Black "KNVB"]
[Result "0-1"]
[WhiteElo "2349"]
[BlackElo "2478"]
[TimeControl "180+2"]
[EndTime "14:27:39 PST"]
[Termination "KNVB won on time"]

1. e4 {[%clk 0:03:02]} 1... c5 {[%clk 0:03:00.9]} 2. Nf3 {[%clk 0:03:02.2]} 2...
e6 {[%clk 0:03:02.2]} 3. d4 {[%clk 0:03:03]} 3... cxd4 {[%clk 0:03:04.1]} 4.
Nxd4 {[%clk 0:03:04.7]} 4... Nc6 {[%clk 0:03:05.7]} 5. Nc3 {[%clk 0:03:03.4]}
5... Qc7 {[%clk 0:03:06.5]} 6. g3 {[%clk 0:03:03.6]} 6... a6 {[%clk 0:03:03.5]}
7. Bg2 {[%clk 0:03:00.9]} 7... Nf6 {[%clk 0:03:01.8]} 8. Nxc6 {[%clk 0:02:55.6]}
8... dxc6 {[%clk 0:02:55.3]} 9. O-O {[%clk 0:02:54.2]} 9... e5 {[%clk
0:02:50.7]} 10. h3 {[%clk 0:02:50.8]} 10... Be6 {[%clk 0:02:39.9]} 11. Be3
{[%clk 0:02:42.8]} 11... b5 {[%clk 0:02:20.2]} 12. Re1 {[%clk 0:02:35.8]} 12...
Be7 {[%clk 0:02:14.2]} 13. a4 {[%clk 0:02:32.8]} 13... O-O {[%clk 0:02:14.4]}
14. axb5 {[%clk 0:02:28.2]} 14... axb5 {[%clk 0:02:16.3]} 15. g4 {[%clk
0:02:24.3]} 15... h6 {[%clk 0:02:01]} 16. Qf3 {[%clk 0:02:17.8]} 16... Nd7
{[%clk 0:01:51.8]} 17. Qg3 {[%clk 0:02:12.7]} 17... Bg5 {[%clk 0:01:34.4]} 18.
Rxa8 {[%clk 0:01:59.6]} 18... Rxa8 {[%clk 0:01:32.7]} 19. Nd5 {[%clk 0:01:58.8]}
19... Qa5 {[%clk 0:01:03.8]} 20. b4 {[%clk 0:01:48.4]} 20... Qd8 {[%clk
0:00:59.9]} 21. Bxg5 {[%clk 0:01:37.3]} 21... hxg5 {[%clk 0:00:55.8]} 22. Rd1
{[%clk 0:01:11.4]} 22... Nb6 {[%clk 0:00:51.6]} 23. Nc3 {[%clk 0:00:32.7]} 23...
Qc7 {[%clk 0:00:41]} 24. Qe3 {[%clk 0:00:31.2]} 24... f6 {[%clk 0:00:38.4]} 25.
Qc5 {[%clk 0:00:31.6]} 25... Rc8 {[%clk 0:00:05.8]} 26. Rd6 {[%clk 0:00:21.3]}
26... Nd7 {[%clk 0:00:06.8]} 27. Nxb5 {[%clk 0:00:10.9]} 27... Nxc5 {[%clk
0:00:03.2]} 28. Nxc7 {[%clk 0:00:11.7]} 28... Rxc7 {[%clk 0:00:03.2]} 29. bxc5
{[%clk 0:00:12.7]} 29... Kf7 {[%clk 0:00:04.1]} 30. Bf1 {[%clk 0:00:12.7]} 30...
Ke7 {[%clk 0:00:05.1]} 31. Ba6 {[%clk 0:00:11.1]} 31... Bd7 {[%clk 0:00:05.1]}
32. Bc4 {[%clk 0:00:07.5]} 32... Ra7 {[%clk 0:00:06.4]} 33. Be2 {[%clk
0:00:05.2]} 33... Ra5 {[%clk 0:00:07.3]} 34. Rd2 {[%clk 0:00:05.2]} 34... Rxc5
{[%clk 0:00:08.4]} 35. c4 {[%clk 0:00:06.8]} 35... Be6 {[%clk 0:00:07.8]} 36.
Ra2 {[%clk 0:00:08.3]} 36... Kd6 {[%clk 0:00:05.2]} 37. Rd2+ {[%clk 0:00:07.7]}
37... Kc7 {[%clk 0:00:06.4]} 38. Ra2 {[%clk 0:00:08]} 38... Kb6 {[%clk
0:00:06.1]} 39. Rb2+ {[%clk 0:00:09]} 39... Kc7 {[%clk 0:00:03.9]} 40. Kg2
{[%clk 0:00:08.3]} 40... Ra5 {[%clk 0:00:04.2]} 41. c5 {[%clk 0:00:06.4]} 41...
Rxc5 {[%clk 0:00:04.2]} 42. h4 {[%clk 0:00:07.3]} 42... gxh4 {[%clk 0:00:04.9]}
43. Rb4 {[%clk 0:00:07.8]} 43... Rc2 {[%clk 0:00:03.3]} 44. Bf3 {[%clk
0:00:08.1]} 44... g5 {[%clk 0:00:03.6]} 45. Ra4 {[%clk 0:00:08.4]} 45... Ra2
{[%clk 0:00:05.3]} 46. Rb4 {[%clk 0:00:08.7]} 46... c5 {[%clk 0:00:06.7]} 47.
Rb5 {[%clk 0:00:09.5]} 47... c4 {[%clk 0:00:06.8]} 48. Rc5+ {[%clk 0:00:09.7]}
48... Kd6 {[%clk 0:00:08]} 49. Rb5 {[%clk 0:00:10.6]} 49... Kc7 {[%clk
0:00:08.1]} 50. Bd1 {[%clk 0:00:10.4]} 50... Rd2 {[%clk 0:00:06.2]} 51. Ba4
{[%clk 0:00:09.9]} 51... Rd4 {[%clk 0:00:03.7]} 52. Rc5+ {[%clk 0:00:10.4]}
52... Kb6 {[%clk 0:00:04.8]} 53. Rc6+ {[%clk 0:00:11.2]} 53... Ka5 {[%clk
0:00:06.4]} 54. Bc2 {[%clk 0:00:11.2]} 54... Bxg4 {[%clk 0:00:07.5]} 55. Rxf6
{[%clk 0:00:11.3]} 55... Rd2 {[%clk 0:00:07.6]} 56. Bb1 {[%clk 0:00:09]} 56...
c3 {[%clk 0:00:07.4]} 57. Rc6 {[%clk 0:00:07.7]} 57... Kb4 {[%clk 0:00:08.2]}
58. Rc7 {[%clk 0:00:05.5]} 58... Bd1 {[%clk 0:00:08.9]} 59. Rg7 {[%clk
0:00:04.9]} 59... g4 {[%clk 0:00:09]} 60. Re7 {[%clk 0:00:04.8]} 60... c2 {[%clk
0:00:08.3]} 61. Bxc2 {[%clk 0:00:04.8]} 61... Bf3+ {[%clk 0:00:09.5]} 62. Kf1
{[%clk 0:00:02.6]} 62... Rxc2 {[%clk 0:00:10.2]} 63. Ke1 {[%clk 0:00:04]} 63...
Rc4 {[%clk 0:00:09.6]} 64. Kd2 {[%clk 0:00:03.4]} 64... Rxe4 {[%clk 0:00:10.3]}
65. Rh7 {[%clk 0:00:03.1]} 65... h3 {[%clk 0:00:11.4]} 66. Kd3 {[%clk
0:00:03.7]} 66... Re2 {[%clk 0:00:12.7]} 0-1

[Event "*** Titled Tuesday 3|2 Blitz"]
[Site "Chess.com"]
[Date "2017.03.07"]
[Round "6"]
[White "GianmarcoVaR"]
[Black "daro94"]
[Result "1-0"]
[WhiteElo "2441"]
[BlackElo "2682"]
[TimeControl "180+2"]
[EndTime "14:27:41 PST"]
[Termination "GianmarcoVaR won by resignation"]

1. d4 {[%clk 0:03:02]} 1... Nf6 {[%clk 0:03:00.9]} 2. Nf3 {[%clk 0:03:03]} 2...
g6 {[%clk 0:03:02.3]} 3. Bg5 {[%clk 0:02:59.3]} 3... Bg7 {[%clk 0:03:03.3]} 4.
Nbd2 {[%clk 0:03:00.6]} 4... O-O {[%clk 0:03:04.6]} 5. c3 {[%clk 0:03:01.7]}
5... d6 {[%clk 0:03:04.7]} 6. e3 {[%clk 0:03:02.8]} 6... Nbd7 {[%clk 0:03:04.7]}
7. Be2 {[%clk 0:03:03.6]} 7... e5 {[%clk 0:03:06]} 8. dxe5 {[%clk 0:03:02]} 8...
dxe5 {[%clk 0:03:05.4]} 9. O-O {[%clk 0:03:02.4]} 9... Qe8 {[%clk 0:03:01.9]}
10. e4 {[%clk 0:03:03.2]} 10... h6 {[%clk 0:03:00.9]} 11. Bh4 {[%clk 0:03:03.9]}
11... Nh5 {[%clk 0:03:01.4]} 12. Re1 {[%clk 0:03:02.9]} 12... Nf4 {[%clk
0:03:02.6]} 13. Bf1 {[%clk 0:03:03.5]} 13... g5 {[%clk 0:03:01.7]} 14. Bg3
{[%clk 0:03:04.1]} 14... Nf6 {[%clk 0:02:47.9]} 15. Nc4 {[%clk 0:02:37.1]} 15...
Nh7 {[%clk 0:02:49]} 16. Ne3 {[%clk 0:02:35.3]} 16... Qe6 {[%clk 0:02:39.4]} 17.
Nd2 {[%clk 0:02:32]} 17... Qg6 {[%clk 0:02:28.5]} 18. Qc2 {[%clk 0:02:31.5]}
18... Be6 {[%clk 0:02:25.9]} 19. Nf5 {[%clk 0:02:27.9]} 19... Rfe8 {[%clk
0:02:26]} 20. Nc4 {[%clk 0:02:28.1]} 20... h5 {[%clk 0:02:18.5]} 21. f3 {[%clk
0:02:26.3]} 21... g4 {[%clk 0:01:50.9]} 22. fxg4 {[%clk 0:02:10.4]} 22... Qxg4
{[%clk 0:01:49.7]} 23. Nxg7 {[%clk 0:02:08]} 23... Qxg7 {[%clk 0:01:51.6]} 24.
Qf2 {[%clk 0:02:07.3]} 24... Bxc4 {[%clk 0:00:58.2]} 25. Bxc4 {[%clk 0:02:08.2]}
25... Nf6 {[%clk 0:00:58.9]} 26. Bxf4 {[%clk 0:01:57.7]} 26... Ng4 {[%clk
0:00:59.7]} 27. Qf3 {[%clk 0:01:29]} 27... exf4 {[%clk 0:01:00.1]} 28. Qxf4
{[%clk 0:01:30.1]} 28... Qf6 {[%clk 0:00:54.6]} 29. Qxf6 {[%clk 0:01:26.7]}
29... Nxf6 {[%clk 0:00:56.5]} 30. e5 {[%clk 0:01:21.1]} 30... Ng4 {[%clk
0:00:53.8]} 31. e6 {[%clk 0:01:21]} 31... fxe6 {[%clk 0:00:54.9]} 32. Bxe6+
{[%clk 0:01:19]} 32... Kg7 {[%clk 0:00:56.2]} 33. Bxg4 {[%clk 0:01:18.7]} 33...
hxg4 {[%clk 0:00:58.1]} 34. Kf2 {[%clk 0:01:20]} 34... Kg6 {[%clk 0:00:45.3]}
35. Rxe8 {[%clk 0:01:20.5]} 35... Rxe8 {[%clk 0:00:47.2]} 36. Re1 {[%clk
0:01:21]} 36... Rd8 {[%clk 0:00:46.7]} 37. Kg3 {[%clk 0:00:37.9]} 37... Rd2
{[%clk 0:00:45.7]} 38. Re7 {[%clk 0:00:38.5]} 38... Rxb2 {[%clk 0:00:38.1]} 39.
Rxc7 {[%clk 0:00:39.6]} 39... a5 {[%clk 0:00:35.6]} 40. a4 {[%clk 0:00:37.2]}
40... Kf5 {[%clk 0:00:32.1]} 41. Rc5+ {[%clk 0:00:35.4]} 41... Ke4 {[%clk
0:00:31.7]} 42. Rxa5 {[%clk 0:00:35.5]} 42... Kd3 {[%clk 0:00:33.3]} 43. Rb5
{[%clk 0:00:33]} 43... Ra2 {[%clk 0:00:34.9]} 44. Rxb7 {[%clk 0:00:31.5]} 44...
Kxc3 {[%clk 0:00:33.1]} 45. Kxg4 {[%clk 0:00:24.9]} 45... Rxg2+ {[%clk
0:00:33.3]} 46. Kh3 {[%clk 0:00:24.3]} 46... Ra2 {[%clk 0:00:32.4]} 47. Ra7
{[%clk 0:00:24.7]} 47... Kd4 {[%clk 0:00:24.8]} 48. Kg3 {[%clk 0:00:23.9]} 48...
Ke5 {[%clk 0:00:25.3]} 49. h3 {[%clk 0:00:18.2]} 49... Kf5 {[%clk 0:00:25.3]}
50. Ra5+ {[%clk 0:00:18.7]} 50... Kf6 {[%clk 0:00:23.5]} 51. h4 {[%clk
0:00:18.5]} 51... Ra1 {[%clk 0:00:24]} 52. h5 {[%clk 0:00:18.1]} 52... Kg7
{[%clk 0:00:23.6]} 53. Ra6 {[%clk 0:00:17]} 53... Kh7 {[%clk 0:00:22.9]} 54. Kf4
{[%clk 0:00:16.2]} 54... Rh1 {[%clk 0:00:21.9]} 55. h6 {[%clk 0:00:16.1]} 55...
Ra1 {[%clk 0:00:19.4]} 56. Ke4 {[%clk 0:00:15.5]} 56... Rg1 {[%clk 0:00:17.8]}
57. Kd4 {[%clk 0:00:11.1]} 57... Rg4+ {[%clk 0:00:10.3]} 58. Ke3 {[%clk
0:00:10.7]} 58... Rh4 {[%clk 0:00:09.7]} 59. Kf3 {[%clk 0:00:09.7]} 59... Rb4
{[%clk 0:00:10.4]} 60. Ke3 {[%clk 0:00:10.8]} 60... Rh4 {[%clk 0:00:11.7]} 61.
Kd3 {[%clk 0:00:11.5]} 61... Rf4 {[%clk 0:00:08]} 62. a5 {[%clk 0:00:09.7]}
62... Ra4 {[%clk 0:00:08.9]} 63. Kc3 {[%clk 0:00:10.2]} 63... Rg4 {[%clk
0:00:04.2]} 64. Rb6 {[%clk 0:00:08.8]} 64... Rg5 {[%clk 0:00:05.5]} 65. Kb4
{[%clk 0:00:08.5]} 65... Rg4+ {[%clk 0:00:06.5]} 66. Kb5 {[%clk 0:00:09.5]}
66... Rg5+ {[%clk 0:00:08.1]} 67. Ka6 {[%clk 0:00:10.6]} 67... Rc5 {[%clk
0:00:08.6]} 68. Rd6 {[%clk 0:00:11.4]} 68... Rc2 {[%clk 0:00:08.5]} 69. Kb7
{[%clk 0:00:11.8]} 69... Rb2+ {[%clk 0:00:10.2]} 70. Rb6 {[%clk 0:00:12.7]}
70... Rd2 {[%clk 0:00:10.9]} 71. a6 {[%clk 0:00:10.6]} 71... Rd7+ {[%clk
0:00:11.8]} 72. Kc6 {[%clk 0:00:11]} 72... Rd1 {[%clk 0:00:11.4]} 73. a7 {[%clk
0:00:11.4]} 73... Ra1 {[%clk 0:00:12.3]} 74. Kb7 {[%clk 0:00:12.4]} 1-0